[Event "EICC 2025"]
[Site "Eforie-Nord"]
[Date "2025.03.17"]
[Round "3.30"]
[White "Kollars, Dmitrij"]
[Black "Gokerkan, Cem Kaan"]
[Result "1-0"]
[Annotator "TA"]
[ECO "C01"]
[WhiteElo "2649"]
[BlackElo "2473"]
[PlyCount "147"]
[EventDate "2025.03.14"]
[EventType "swiss"]
[EventCountry "ROU"]
[SourceTitle "playchess.com"]
[Source "ChessBase"]
[SourceQuality "1"]
[TimeControl "40/5400+30:1800+30"]

{[%evp 14,147,13,13,13,13,25,18,27,26,35,36,36,43,39,33,35,35,35,34,29,36,38,29,27,12,42,41,46,39,37,16,29,36,30,25,55,52,44,37,35,51,79,39,47,0,0,-10,0,0,32,0,0,0,0,0,45,54,45,48,57,73,63,61,83,90,89,48,82,13,25,24,10,12,12,13,23,18,9,0,0,0,0,0,0,0,0,0,41,52,249,239,240,232,280,282,381,382,397,391,358,388,371,371,392,412,388,338,358,322,316,285,381,372,369,344,401,401,400,397,498,499,496,496,535,530,538,539,642,641,866,858,4627,4578,1363,1317]} 1. e4 {[%emt 0:00:07]} e5 {[%emt 0:03:17]} 2. Nf3 {[%emt 0:00:27]} Nf6 {[%emt 0:00:04]} 3. Nxe5 {[%emt 0:04:00]} d6 {[%emt 0:00:23]} 4. Nf3 {[%emt 0:00:37]} Nxe4 {[%emt 0:00:07]} 5. d3 {[%emt 0:03:14]} Nf6 {[%emt 0:00:23]} 6. d4 {[%emt 0:00:08]} d5 {[%emt 0:00:22]} 7. Bd3 {[%emt 0:01:20]} Bd6 {[%emt 0:00:39]} 8. Qe2+ {[%emt 0:01:42]} Be7 {[%emt 0:01:21] C01: French: Exchange Variation.} 9. O-O {[%emt 0:01:13] 9.Bg5 is the modern continuation.} O-O {[%emt 0:00:06]} 10. Re1 {[%emt 0:03:35]} Bd6 {[%emt 0:00:31] The position is equal.} 11. Bg5 {[%emt 0:02:01][%cal Bc1g5,Bg5h4,Bh4g3][%mdl 32]} h6 {[%emt 0:00:23]} 12. Bh4 {[%emt 0:00:50]} g5 {[%emt 0:00:49][%cal Of8e8] [#]} 13. Bg3 $1 {[%emt 0:01:56]} Re8 {[%emt 0:00:13]} 14. Qf1 {[%emt 0:02:51]} Rxe1 {[%emt 0:00:37]} 15. Qxe1 {[%emt 0:00:41]} Nc6 {[%emt 0:02:02]} 16. c3 {[%emt 0:02:03] Prevents Nb4.} Nh5 {[%emt 0:02:02]} 17. Nbd2 {[%emt 0:10:43]} Nf4 $146 {[%emt 0:09:53]} (17... Nxg3 18. hxg3 Kg7 19. Nf1 Qf6 20. Ne3 Ne7 21. Ne5 h5 22. Qe2 Qh6 23. c4 c6 24. cxd5 cxd5 25. Rc1 Be6 {0-1 Aditya,M (2565)-Meier,G (2591) Julius Baer GenCup Pl/In rapid 2024 (5)}) 18. Bc2 {[%emt 0:02:31]} Qf6 {[%emt 0:03:34]} 19. Qf1 {[%emt 0:04:42]} Bf5 {[%emt 0:10:45]} 20. Bxf5 {[%emt 0:00:18]} Qxf5 {[%emt 0:00:03]} 21. Qb5 {[%emt 0:04:12]} Rb8 {[%emt 0:03:59]} 22. Bxf4 {[%emt 0:02:37]} Bxf4 {[%emt 0:01:09]} 23. Nf1 {[%emt 0:00:29]} a6 {[%emt 0:00:50]} 24. Qe2 {[%emt 0:01:24]} g4 {[%emt 0:20:48]} 25. Ne1 {[%emt 0:04:33]} Kf8 {[%emt 0:06:40]} 26. Nd3 {[%emt 0:04:14]} Re8 {[%emt 0:00:51]} 27. Qd1 {[%emt 0:00:09]} Bg5 {[%emt 0:05:27]} 28. Ng3 {[%emt 0:01:40]} Qg6 {[%emt 0:00:02]} 29. Nc5 {[%emt 0:03:10]} (29. f4 $14 {is superior.} gxf3 30. Qxf3) 29... h5 $11 {[%emt 0:02:07]} 30. b3 {[%emt 0:11:04]} b6 {[%emt 0:06:33]} 31. Nxa6 {[%emt 0:00:58] A dynamic duo of knights.} Bf4 {[%emt 0:00:04]} 32. Nf1 {[%emt 0:02:00]} h4 {[%emt 0:05:38]} 33. g3 {[%emt 0:03:45]} Bd6 {[%emt 0:00:05]} 34. a3 {[%emt 0:03:38]} Qe4 {[%emt 0:05:32]} 35. gxh4 {[%emt 0:04:23]} Ne7 {[%emt 0:04:57] [#] ...Ng6 is the strong threat.} 36. Ng3 {[%emt 0:00:26]} Qe6 {[%emt 0:00:25]} 37. Qd2 {[%emt 0:02:55]} (37. Nb4 Ng6 38. h5 Nh4 $17) 37... Ng6 {[%emt 0:01:20]} 38. Qh6+ {[%emt 0:01:27]} Kg8 {[%emt 0:00:25]} 39. Nb4 {[%emt 0:01:19]} Nf4 {[%emt 0:02:16] Prevents Nd3} 40. Qxe6 {[%emt 0:03:47]} (40. Qg5+ {feels hotter.} Kh7 41. Kf1 Rg8 42. Qf5+) 40... fxe6 {[%emt 0:00:19]} 41. Nc6 {[%emt 0:35:14]} (41. a4 $16) 41... Rf8 {[%emt 0:03:43]} 42. Ra2 {[%emt 0:00:00]} Nh3+ {[%emt 0:01:35]} 43. Kf1 {[%emt 0:00:00]} Rf3 {[%emt 0:00:21]} 44. Rc2 {[%emt 0:00:00]} Rd3 {[%emt 0:05:21]} 45. Ke1 {[%emt 0:00:00] b4 is the strong threat.} Nf4 $1 {[%emt 0:02:12]} 46. Nb4 {[%emt 0:00:00]} Bxb4 {[%emt 0:02:25]} 47. axb4 {[%emt 0:00:00][%mdl 4096] Endgame KRN-KRN. White is two pawns up.} Ng2+ {[%emt 0:00:06]} 48. Kf1 {[%emt 0:00:00]} Nf4 {[%emt 0:00:11]} 49. Rc1 {[%emt 0:00:00] Prevents Rd1+.} Rd2 {[%emt 0:00:50]} 50. Re1 {[%emt 0:00:00]} Rc2 {[%emt 0:06:34]} 51. Ne2 {[%emt 0:00:00]} Ng6 {[%emt 0:07:49] This costs Black the game.} ({Black should try} 51... Nxe2 $14 52. Rxe2 Rxc3) 52. h5 $18 {[%emt 0:00:00]} Nh4 {[%emt 0:00:01][%cal Bg6h4,Bh4f3,Bf3d2,Bd2e4][%mdl 32]} 53. Rc1 {[%emt 0:00:00]} Rb2 {[%emt 0:01:57]} 54. Nf4 {[%emt 0:00:00]} Nf3 {[%emt 0:02:41]} 55. Nxe6 {[%emt 0:00:00]} Nd2+ {[%emt 0:00:03]} 56. Kg2 {[%emt 0:00:00]} Ne4 {[%emt 0:00:06]} 57. Nxc7 {[%emt 0:00:13]} Rxf2+ {[%emt 0:00:09]} 58. Kg1 {[%emt 0:00:06]} Rb2 {[%emt 0:04:13]} 59. Nxd5 {[%emt 0:00:11]} Kg7 {[%emt 0:00:22]} 60. Ne3 {[%emt 0:02:17]} (60. Nxb6 Nd2 61. Rf1 Nxf1 62. Kxf1 Rxb3 $11) 60... Kh6 {[%emt 0:00:47]} 61. Nxg4+ {[%emt 0:00:51]} Kxh5 {[%emt 0:00:01]} 62. Ne3 {[%emt 0:00:09]} Rxb3 {[%emt 0:00:51]} 63. Nd1 {[%emt 0:00:27]} Ra3 {[%emt 0:00:43]} 64. Kg2 {[%emt 0:00:57]} Kg5 {[%emt 0:01:05]} 65. Kf3 {[%emt 0:00:51]} Nd6 {[%emt 0:00:44]} 66. Rc2 {[%emt 0:01:59]} Nb5 {[%emt 0:00:23]} 67. Ke4 {[%emt 0:00:21] White is clearly winning.} Kf6 {[%emt 0:00:08]} 68. Ne3 {[%emt 0:00:18]} Ke6 {[%emt 0:00:26]} 69. Kd3 {[%emt 0:00:37]} Ra1 {[%emt 0:00:09]} 70. Rg2 {[%emt 0:00:35]} Ra3 {[%emt 0:00:26]} 71. Rg6+ {[%emt 0:00:18]} Kf7 {[%emt 0:00:06]} 72. Rxb6 {[%emt 0:00:45]} Nxc3 {[%emt 0:00:06]} 73. Rb7+ {[%emt 0:00:23]} Ke6 {[%emt 0:00:09]} 74. Nc2 {[%emt 0:00:25] Weighted Error Value: White=0.08 (flawless) /Black=0.14 (very precise)   Loses game:     	---       	Black=1      Mistake:       	White=2     	---        Inaccurate:     	White=3     	Black=10     OK:         	White=29    	Black=21     Best:        	White=7     	Black=6      Strong:       	White=1     	Black=1} 1-0

[Event "EICC 2025"]
[Site "Eforie-Nord"]
[Date "2025.03.17"]
[Round "3.30"]
[White "Kobo, Ori"]
[Black "Filip, Andrei"]
[Result "0-1"]
[Annotator "RC"]
[ECO "C43"]
[WhiteElo "2525"]
[BlackElo "2300"]
[PlyCount "80"]
[EventDate "2025.03.14"]
[EventType "swiss"]
[EventCountry "ROU"]
[SourceTitle "playchess.com"]
[Source "ChessBase"]
[SourceQuality "1"]
[TimeControl "40/5400+30:1800+30"]

1. e4 {[%emt 0:00:12]} e5 {[%emt 0:00:15]} 2. Nf3 {[%emt 0:00:14]} Nf6 {[%emt 0:00:20]} 3. d4 {[%emt 0:00:23]} Nxe4 {[%emt 0:00:49]} 4. Bd3 {[%emt 0:00:23]} d5 {[%emt 0:00:25]} 5. Nxe5 {[%emt 0:00:28]} Nd7 {[%emt 0:01:42]} 6. O-O {[%emt 0:00:23]} Nxe5 {[%emt 0:04:45]} 7. dxe5 {[%emt 0:00:09]} Nc5 {[%emt 0:00:19]} 8. Be3 {[%emt 0:00:27]} Nxd3 {[%emt 0:04:43]} 9. Qxd3 {[%emt 0:00:20]} Be7 {[%emt 0:04:51]} 10. Nc3 {[%emt 0:02:44]} c6 {[%emt 0:00:32]} 11. f4 {[%emt 0:00:07]} g6 {[%emt 0:02:09]} 12. Ne2 {[%emt 0:00:28]} Bf5 {[%emt 0:08:40]} 13. Qb3 {[%emt 0:00:43]} Qc8 {[%emt 0:04:29]} 14. Ng3 {[%emt 0:03:27]} Be6 {[%emt 0:03:47]} 15. Qd3 {[%emt 0:00:16]} Bf5 {[%emt 0:00:58]} 16. Nxf5 {[%emt 0:00:08]} Qxf5 {[%emt 0:00:06]} 17. Qb3 {[%emt 0:00:07]} Qd7 {[%emt 0:17:45]} 18. f5 {[%emt 0:09:05]} gxf5 {[%emt 0:01:52]} 19. Qd3 {[%emt 0:01:53]} c5 {[%emt 0:11:23]} 20. Rxf5 {[%emt 0:08:03]} c4 {[%emt 0:04:04]} 21. Qf1 {[%emt 0:00:06]} Qe6 {[%emt 0:00:33]} 22. Qf2 {[%emt 0:08:12]} Rg8 {[%emt 0:03:18]} 23. Rf1 {[%emt 0:03:32]} Rg7 {[%emt 0:01:03]} 24. Bxa7 {[%emt 0:08:10]} Bd8 {[%emt 0:01:28]} 25. Bd4 {[%emt 0:09:37]} Rxa2 {[%emt 0:00:33]} 26. h3 {[%emt 0:02:48]} Kf8 {[%emt 0:02:43]} 27. Re1 {[%emt 0:09:23]} Rg6 {[%emt 0:00:43]} 28. Rf1 {[%emt 0:08:42]} Rg7 {[%emt 0:00:14]} 29. Qf4 {[%emt 0:05:50]} Ra8 {[%emt 0:01:08]} 30. Rf3 {[%emt 0:02:52]} Be7 {[%emt 0:02:53]} 31. Re3 {[%emt 0:03:11]} Rg6 {[%emt 0:01:32]} 32. Rf3 {[%emt 0:03:50]} Rg7 {[%emt 0:00:21]} 33. Re3 {[%emt 0:00:32]} Rg6 {[%emt 0:00:35]} 34. h4 {[%emt 0:00:28]} Ra6 {[%emt 0:12:13]} 35. h5 {[%emt 0:02:21]} Rg7 {[%emt 0:00:38]} 36. Rf3 {[%emt 0:05:20]} Ke8 {[%emt 0:01:37]} 37. Kf2 {[%emt 0:02:52]} h6 {[%emt 0:00:51]} 38. Rf6 {[%emt 0:01:09]} Qg4 {[%emt 0:00:28]} 39. Rxf7 {[%emt 0:00:32]} Qxg2+ {[%emt 0:00:29]} 40. Ke3 {[%emt 0:00:22]} Bg5 {[%emt 0:00:27]} 0-1

[Event "EICC 2025"]
[Site "Eforie-Nord"]
[Date "2025.03.17"]
[Round "3.31"]
[White "Heberla, Bartlomiej"]
[Black "Cheparinov, Ivan"]
[Result "1-0"]
[Annotator "RC"]
[ECO "D00"]
[WhiteElo "2512"]
[BlackElo "2646"]
[PlyCount "41"]
[EventDate "2025.03.14"]
[EventType "swiss"]
[EventCountry "ROU"]
[SourceTitle "playchess.com"]
[Source "ChessBase"]
[SourceQuality "1"]
[TimeControl "40/5400+30:1800+30"]

1. d4 {[%emt 0:00:02]} Nf6 {[%emt 0:00:08]} 2. Bg5 {[%emt 0:00:04]} d5 {[%emt 0:01:13]} 3. Nd2 {[%emt 0:00:23]} c5 {[%emt 0:02:11]} 4. dxc5 {[%emt 0:00:35]} e6 {[%emt 0:18:12]} 5. e4 {[%emt 0:01:01]} h6 {[%emt 0:04:43]} 6. Bh4 {[%emt 0:00:51]} Nc6 {[%emt 0:00:05]} 7. exd5 {[%emt 0:01:27]} exd5 {[%emt 0:02:41]} 8. Nb3 {[%emt 0:04:48]} g5 {[%emt 0:07:33]} 9. Bg3 {[%emt 0:00:23]} Ne4 {[%emt 0:00:06]} 10. Bb5 {[%emt 0:09:50]} Bg7 {[%emt 0:01:17]} 11. c3 {[%emt 0:02:02]} O-O {[%emt 0:01:49]} 12. Ne2 {[%emt 0:00:54]} h5 {[%emt 0:07:18]} 13. f3 {[%emt 0:02:17]} Nxg3 {[%emt 0:02:38]} 14. hxg3 {[%emt 0:00:11]} h4 {[%emt 0:04:02]} 15. Qd2 {[%emt 0:16:13]} Ne5 {[%emt 0:02:07]} 16. O-O-O {[%emt 0:07:06]} a6 {[%emt 0:01:39]} 17. Bd3 {[%emt 0:00:21]} Qf6 {[%emt 0:06:08]} 18. Nbd4 {[%emt 0:09:42]} Nc4 {[%emt 0:04:14]} 19. Bxc4 {[%emt 0:01:41]} dxc4 {[%emt 0:00:04]} 20. f4 {[%emt 0:06:50]} Bh6 {[%emt 0:01:04]} 21. Nf3 {[%emt 0:03:40]} 1-0

[Event "EICC 2025"]
[Site "Eforie-Nord"]
[Date "2025.03.17"]
[Round "3.31"]
[White "Stepanencu, Nicodim-Cosmin"]
[Black "Sebenik, Matej"]
[Result "0-1"]
[Annotator "RC"]
[ECO "B51"]
[WhiteElo "2297"]
[BlackElo "2492"]
[PlyCount "106"]
[EventDate "2025.03.14"]
[EventType "swiss"]
[EventCountry "ROU"]
[SourceTitle "playchess.com"]
[Source "ChessBase"]
[SourceQuality "1"]
[TimeControl "40/5400+30:1800+30"]

1. e4 {[%emt 0:00:04]} c5 {[%emt 0:00:17]} 2. Nf3 {[%emt 0:00:09]} Nc6 {[%emt 0:00:06]} 3. Bb5 {[%emt 0:00:07]} d6 {[%emt 0:00:05]} 4. O-O {[%emt 0:00:12]} Bd7 {[%emt 0:00:04]} 5. Re1 {[%emt 0:00:09]} a6 {[%emt 0:00:33]} 6. Bxc6 {[%emt 0:00:27]} Bxc6 {[%emt 0:00:06]} 7. d4 {[%emt 0:00:05]} cxd4 {[%emt 0:00:05]} 8. Nxd4 {[%emt 0:00:04]} Rc8 {[%emt 0:00:24]} 9. c4 {[%emt 0:00:28]} g6 {[%emt 0:01:14]} 10. Nc3 {[%emt 0:06:24]} Bg7 {[%emt 0:00:09]} 11. Qd3 {[%emt 0:02:14]} Nf6 {[%emt 0:01:23]} 12. b3 {[%emt 0:01:15]} O-O {[%emt 0:00:14]} 13. Bb2 {[%emt 0:02:10]} Nd7 {[%emt 0:06:44]} 14. Nd5 {[%emt 0:10:49]} Re8 {[%emt 0:12:00]} 15. Qd2 {[%emt 0:12:43]} Nc5 {[%emt 0:02:30]} 16. Re2 {[%emt 0:11:27]} Bd7 {[%emt 0:04:19]} 17. Rd1 {[%emt 0:13:05]} b5 {[%emt 0:24:36]} 18. Bc3 {[%emt 0:03:21]} Nb7 {[%emt 0:00:09]} 19. Nf3 {[%emt 0:06:06]} bxc4 {[%emt 0:25:04]} 20. Bxg7 {[%emt 0:15:42]} Kxg7 {[%emt 0:00:05]} 21. Qd4+ {[%emt 0:00:03]} e5 {[%emt 0:00:53]} 22. Qa7 {[%emt 0:00:29]} Nc5 {[%emt 0:07:01]} 23. b4 {[%emt 0:00:32]} Ba4 {[%emt 0:01:35]} 24. Ra1 {[%emt 0:03:25]} Nd3 {[%emt 0:10:51]} 25. Qxa6 {[%emt 0:01:01]} Bc6 {[%emt 0:00:07]} 26. Qxc4 {[%emt 0:01:35]} Bxd5 {[%emt 0:00:06]} 27. Qxd5 {[%emt 0:00:21]} Nf4 {[%emt 0:00:10]} 28. Qd2 {[%emt 0:00:02]} Nxe2+ {[%emt 0:01:34]} 29. Qxe2 {[%emt 0:00:02]} Qb6 {[%emt 0:00:14]} 30. b5 {[%emt 0:05:39]} Rc5 {[%emt 0:00:04]} 31. a4 {[%emt 0:00:03]} Rec8 {[%emt 0:00:02]} 32. Qe3 {[%emt 0:01:42]} Qa5 {[%emt 0:00:12]} 33. h4 {[%emt 0:01:35]} Rxb5 {[%emt 0:02:33]} 34. h5 {[%emt 0:00:17]} Rbc5 {[%emt 0:00:06]} 35. h6+ {[%emt 0:00:04]} Kg8 {[%emt 0:00:07]} 36. Rd1 {[%emt 0:01:45]} Qc7 {[%emt 0:01:09]} 37. Qg5 {[%emt 0:01:35]} Rc1 {[%emt 0:01:07]} 38. Qf6 {[%emt 0:01:18]} Rxd1+ {[%emt 0:00:04]} 39. Kh2 {[%emt 0:00:02]} Rh1+ {[%emt 0:00:05]} 40. Kxh1 {[%emt 0:00:13]} Qc1+ {[%emt 0:00:04]} 41. Kh2 {[%emt 0:30:03]} Qxh6+ {[%emt 0:30:07]} 42. Kg3 {[%emt 0:00:07]} Qf4+ {[%emt 0:02:10]} 43. Qxf4 {[%emt 0:00:05]} exf4+ {[%emt 0:00:03]} 44. Kxf4 {[%emt 0:00:05]} Ra8 {[%emt 0:00:04]} 45. Ke3 {[%emt 0:00:00]} Rxa4 {[%emt 0:00:00]} 46. Nd4 {[%emt 0:00:00]} Ra3+ {[%emt 0:00:00]} 47. Ke2 {[%emt 0:00:00]} Kf8 {[%emt 0:00:00]} 48. Nb5 {[%emt 0:00:00]} Ra2+ {[%emt 0:00:00]} 49. Ke3 {[%emt 0:00:00]} Ke7 {[%emt 0:00:00]} 50. Nc7 {[%emt 0:00:00]} g5 {[%emt 0:00:00]} 51. g4 {[%emt 0:00:00]} Ra3+ {[%emt 0:00:00]} 52. Ke2 {[%emt 0:00:00]} Ra5 {[%emt 0:00:00]} 53. Kd3 {[%emt 0:00:00]} Kf6 {[%emt 0:00:00]} 0-1

[Event "EICC 2025"]
[Site "Eforie-Nord"]
[Date "2025.03.17"]
[Round "3.32"]
[White "Grandelius, Nils"]
[Black "Baum, Jonasz"]
[Result "1/2-1/2"]
[Annotator "TA"]
[ECO "B44"]
[WhiteElo "2644"]
[BlackElo "2469"]
[PlyCount "128"]
[EventDate "2025.03.14"]
[EventType "swiss"]
[EventCountry "ROU"]
[SourceTitle "playchess.com"]
[Source "ChessBase"]
[SourceQuality "1"]
[TimeControl "40/5400+30:1800+30"]

{[%evp 17,128,8,10,-4,0,0,4,-19,10,32,98,104,100,114,137,136,132,135,138,129,141,141,144,139,135,127,149,142,149,162,141,133,120,108,100,77,64,39,44,29,40,45,38,38,35,46,35,35,35,34,37,8,9,8,11,0,0,-11,-8,-8,-8,-38,-38,-53,-56,-58,-45,-52,-45,-64,-50,-64,-68,-91,-80,-64,-47,-47,-47,-47,0,-47,-47,-62,-50,-54,-62,-70,-31,-43,-44,-53,-35,-39,-35,-43,-24,-24,-24,-24,-24,-24,-8,-8,-8,-22,-8,-22,-8,-8,-8,-8,-8]} 1. c4 {[%emt 0:00:10]} e6 {[%emt 0:00:14]} 2. Nc3 {[%emt 0:00:36]} Nf6 {[%emt 0:00:27]} 3. e4 {[%emt 0:01:07]} c5 {[%emt 0:00:04]} 4. Nf3 {[%emt 0:06:43]} Nc6 {[%emt 0:00:32]} 5. d4 {[%emt 0:00:06]} cxd4 {[%emt 0:00:05]} 6. Nxd4 {[%emt 0:00:05]} Bb4 {[%emt 0:00:06]} 7. Nxc6 {[%emt 0:00:05]} bxc6 {[%emt 0:00:04]} 8. Bd3 {[%emt 0:00:06]} e5 {[%emt 0:00:05]} 9. O-O {[%emt 0:00:06]} O-O {[%emt 0:00:04]} 10. h3 {[%emt 0:00:04] B44: Sicilian: Taimanov: 5 Nb5.} Bxc3 {[%emt 0:09:54]} 11. bxc3 {[%emt 0:00:10]} d6 {[%emt 0:01:32]} 12. f4 {[%emt 0:02:04]} exf4 {[%emt 0:12:35]} 13. Bxf4 {[%emt 0:01:18]} Qe7 $146 {[%emt 0:00:33] [#]} ({Better is} 13... Re8 $14) (13... Qb6+ 14. Kh2 Qc5 15. Qf3 Nd7 16. Qg3 Ne5 17. Be3 Qa5 18. Bd4 f6 19. c5 Be6 20. cxd6 {0-1 Mekhitarian,K (2554)-Kramnik,V (2753) CrunchLab Masters PlayIn rapid 2024 (1)}) 14. Bc2 $1 $16 {[%emt 0:25:08]} Rd8 {[%emt 0:05:46]} 15. Qd3 {[%emt 0:09:57]} h6 {[%emt 0:12:29]} 16. Rad1 {[%emt 0:11:17]} Ba6 {[%emt 0:04:29]} 17. Bxd6 {[%emt 0:05:28][%csl Oa7,Oc6] Black has weak pawns} Qe6 {[%emt 0:00:42] [#]} 18. Rxf6 $1 {[%emt 0:04:55][%mdl 512]} Qxf6 {[%emt 0:01:10]} 19. e5 {[%emt 0:00:10][%cal Be4e5,Be5e6,Be6e7][%mdl 32]} Qg6 {[%emt 0:00:04] Black is weak on the dark squares} 20. Qxg6 {[%emt 0:01:08]} fxg6 {[%emt 0:00:06]} 21. e6 {[%emt 0:00:31]} (21. Bxg6 $6 Bxc4 22. a3 a5 $14) 21... Bxc4 {[%emt 0:21:28]} 22. e7 {[%emt 0:01:05]} (22. Bxg6 $2 {too greedy.} Bxe6 (22... Bxa2 23. e7 $18) 23. c4 c5 $19 (23... Bxc4 $2 24. a3 $19)) 22... Rd7 {[%emt 0:03:30]} 23. Bxg6 {[%emt 0:04:53]} Bf7 {[%emt 0:00:01]} 24. Bf5 {[%emt 0:04:28][%mdl 1024] White has strong compensation. This pair of bishops is nice.} Rb7 {[%emt 0:00:01][%cal Oa8e8]} 25. Bb4 {[%emt 0:11:42]} Re8 {[%emt 0:02:02][%cal Oa7a5]} 26. Rd8 {[%emt 0:00:10]} Rb8 {[%emt 0:08:37]} 27. Ba5 {[%emt 0:04:46] and Bd7 should not be overlooked White is much more active.} (27. Rd7 $5) 27... Rb5 $1 {[%emt 0:05:58] [#]} 28. Be6 {[%emt 0:01:11] The board is on fire.} Bxe6 {[%emt 0:00:10]} 29. Rxe8+ $11 {[%emt 0:00:02][%mdl 4096] Endgame KRB-KRB. White is a pawn up.} Kf7 {[%emt 0:00:05]} 30. Ra8 {[%emt 0:00:19]} ({But not} 30. Rg8 Bd7 31. Rd8 Kxe7 $17) 30... Rb1+ {[%emt 0:03:13]} 31. Kh2 {[%emt 0:00:53]} Kxe7 {[%emt 0:00:05]} 32. Rxa7+ {[%emt 0:00:08]} Kf6 $1 {[%emt 0:01:58][%cal Ob1b2]} 33. Bd8+ {[%emt 0:03:15]} Kg6 {[%emt 0:00:01]} 34. Bc7 {[%emt 0:02:32]} Rb2 {[%emt 0:04:07][%cal Oe6d5]} 35. Be5 {[%emt 0:00:38]} Kf5 {[%emt 0:00:12]} 36. Bd4 {[%emt 0:00:32]} g5 {[%emt 0:00:25]} 37. c4 {[%emt 0:00:36] Against Bd5} Rd2 {[%emt 0:01:31]} 38. Ra5+ {[%emt 0:00:32]} Kg6 {[%emt 0:00:32]} 39. Be3 {[%emt 0:00:24]} Re2 {[%emt 0:00:30]} 40. Ra3 {[%emt 0:00:38]} Bxc4 {[%emt 0:00:11]} 41. Kg1 {[%emt 0:05:04]} Bxa2 {[%emt 0:01:57]} 42. Bf2 {[%emt 0:00:17]} Bd5 {[%emt 0:00:22]} 43. Ra8 {[%emt 0:07:06]} Rc2 {[%emt 0:00:26]} 44. Rd8 {[%emt 0:03:31]} h5 {[%emt 0:02:29]} 45. Rd6+ {[%emt 0:01:07]} Kf5 {[%emt 0:00:24]} 46. Rh6 {[%emt 0:00:06]} h4 {[%emt 0:01:17]} 47. Rd6 {[%emt 0:00:24]} Be4 {[%emt 0:05:19]} 48. Rd8 {[%emt 0:00:15]} Bd5 {[%emt 0:01:46]} 49. Rd6 $1 {[%emt 0:00:08]} Ra2 {[%emt 0:00:48]} 50. Rd7 {[%emt 0:02:02]} Ra4 {[%emt 0:01:11]} 51. Ra7 {[%emt 0:06:05]} Rc4 {[%emt 0:00:59]} 52. Kh2 {[%emt 0:01:07]} g4 {[%emt 0:02:13] And now ...g3+ would win.} 53. hxg4+ {[%emt 0:01:25]} Rxg4 {[%emt 0:00:08]} 54. g3 {[%emt 0:00:17]} Rg8 {[%emt 0:01:09]} 55. Ra4 {[%emt 0:01:10]} Be4 {[%emt 0:01:54]} 56. Be1 {[%emt 0:02:24] [#]} h3 $1 {[%emt 0:01:56]} 57. Bc3 {[%emt 0:02:22]} Bg2 {[%emt 0:00:33]} 58. Rf4+ {[%emt 0:00:01]} Ke6 {[%emt 0:00:50]} 59. g4 {[%emt 0:00:06]} Rg5 {[%emt 0:02:41]} 60. Rf6+ {[%emt 0:01:37] The position is equal.} Kd7 {[%emt 0:00:32]} 61. Rf4 {[%emt 0:00:48]} Rb5 {[%emt 0:02:29]} 62. Bd2 {[%emt 0:02:06]} Rd5 {[%emt 0:02:47]} 63. Rf2 {[%emt 0:00:07]} Ke6 {[%emt 0:04:41]} 64. g5 {[%emt 0:00:08]} Rf5 {[%emt 0:00:23] Blacks defense is rewarded with a draw.   Weighted Error Value: White=0.06 (flawless) /Black=0.08 (flawless)   Mistake:       	---       	Black=1      Inaccurate:     	White=2     	Black=2      OK:         	White=26    	Black=20     Best:        	White=3     	Black=2      Strong:       	White=2     	Black=2      Brilliant:      	White=1     	---} 1/2-1/2

[Event "EICC 2025"]
[Site "Eforie-Nord"]
[Date "2025.03.17"]
[Round "3.32"]
[White "Seemann, Jakub"]
[Black "Valiyev, Shahin"]
[Result "1/2-1/2"]
[Annotator "RC"]
[ECO "D36"]
[WhiteElo "2491"]
[BlackElo "2299"]
[PlyCount "88"]
[EventDate "2025.03.14"]
[EventType "swiss"]
[EventCountry "ROU"]
[SourceTitle "playchess.com"]
[Source "ChessBase"]
[SourceQuality "1"]
[TimeControl "40/5400+30:1800+30"]

1. d4 {[%emt 0:00:04]} d5 {[%emt 0:00:39]} 2. c4 {[%emt 0:00:05]} e6 {[%emt 0:00:05]} 3. Nc3 {[%emt 0:00:03]} Nf6 {[%emt 0:00:18]} 4. cxd5 {[%emt 0:00:08]} exd5 {[%emt 0:00:06]} 5. Bg5 {[%emt 0:00:08]} Be7 {[%emt 0:00:11]} 6. e3 {[%emt 0:00:29]} O-O {[%emt 0:00:33]} 7. Qc2 {[%emt 0:01:12]} h6 {[%emt 0:00:51]} 8. Bh4 {[%emt 0:00:31]} c6 {[%emt 0:01:45]} 9. Bd3 {[%emt 0:00:12]} Re8 {[%emt 0:00:16]} 10. Nge2 {[%emt 0:04:27]} a5 {[%emt 0:00:23]} 11. O-O {[%emt 0:00:43]} Na6 {[%emt 0:00:04]} 12. a3 {[%emt 0:01:05]} Nc7 {[%emt 0:00:27]} 13. Rae1 {[%emt 0:01:54]} b5 {[%emt 0:04:38]} 14. Rc1 {[%emt 0:14:45]} Ne6 {[%emt 0:07:13]} 15. Rfd1 {[%emt 0:01:36]} Bd7 {[%emt 0:08:14]} 16. Bf5 {[%emt 0:06:56]} Ng5 {[%emt 0:08:22]} 17. Ng3 {[%emt 0:05:30]} Qc8 {[%emt 0:23:13]} 18. f4 {[%emt 0:12:21]} Ng4 {[%emt 0:17:16]} 19. Bxd7 {[%emt 0:14:13]} Qxd7 {[%emt 0:01:30]} 20. Nf5 {[%emt 0:01:23]} Ne4 {[%emt 0:01:24]} 21. Nxe4 {[%emt 0:01:56]} Bxh4 {[%emt 0:02:04]} 22. Nc5 {[%emt 0:04:24]} Bf2+ {[%emt 0:06:21]} 23. Kh1 {[%emt 0:00:59]} Qc8 {[%emt 0:00:38]} 24. Rf1 {[%emt 0:06:02]} Nxe3 {[%emt 0:03:14]} 25. Nxe3 {[%emt 0:00:06]} Bxe3 {[%emt 0:00:03]} 26. Rcd1 {[%emt 0:00:04]} Qg4 {[%emt 0:02:13]} 27. h3 {[%emt 0:00:20]} Qh4 {[%emt 0:02:03]} 28. Qf5 {[%emt 0:00:12]} Re7 {[%emt 0:01:28]} 29. Rf3 {[%emt 0:14:55]} Bf2 {[%emt 0:02:59]} 30. Kh2 {[%emt 0:06:49]} Rae8 {[%emt 0:04:21]} 31. Qg4 {[%emt 0:01:55]} Re2 {[%emt 0:01:08]} 32. Qd7 {[%emt 0:00:20]} Bxd4 {[%emt 0:00:44]} 33. Qxc6 {[%emt 0:00:40]} Bxc5 {[%emt 0:01:19]} 34. Qxc5 {[%emt 0:00:07]} Rxb2 {[%emt 0:00:09]} 35. Rxd5 {[%emt 0:00:52]} Rb1 {[%emt 0:00:53]} 36. Qc3 {[%emt 0:00:33]} g6 {[%emt 0:00:48]} 37. Re5 {[%emt 0:00:21]} Rxe5 {[%emt 0:00:28]} 38. fxe5 {[%emt 0:00:05]} Qe7 {[%emt 0:00:23]} 39. Re3 {[%emt 0:00:53]} b4 {[%emt 0:00:30]} 40. axb4 {[%emt 0:00:00]} axb4 {[%emt 0:00:00]} 41. Qc2 {[%emt 0:04:52]} Rf1 {[%emt 0:05:52]} 42. e6 {[%emt 0:00:04]} Kh7 {[%emt 0:02:25]} 43. Qc6 {[%emt 0:03:13]} h5 {[%emt 0:08:07]} 44. Qd7 {[%emt 0:00:57]} Qxd7 {[%emt 0:01:33]} 1/2-1/2